Workbook

Sheet Base de données
A1: Alimentation | D1: Salaire Sophie | F1: CB
A2: Cantine enfants | D2: Salaire Christophe | F2: Chèque
A3: Cantine tof | D3: Remboursement CPAM | F3: Prélèvement
A4: Alimentation | D4: Remboursement Mutuelle | F4: Espèces
A5: Restaurant | D5: Remboursement Sanofi | F5: Retrait
A6: Communication | D6: Cadeaux
A7: Téléphone
A8: FREE
A9: Energie
A10: EDF
A11: SAUR
A12: Gaz
A13: Enfants
A14: Argent de poche Max
A15: Argent de poche Clem
A16: Garderie
A17: TAP
A18: Activité sportive
A19: Activité culturel
A20: Famille
A21: Produits hygiène
A22: Produits d'entretien
A23: Tabac
A24: Alcool
A25: Café/Boissons
A26: Habillement
A27: Maxime
A28: Clément
A29: Sophie
A30: Christophe
A31: Maison
A32: Taxe foncière
A33: Impôt locaux
A34: Travaux
A35: Equipement maison
A36: Outillage
A37: Jardinage
A38: Assurance
A39: Droguerie
A40: Retrait Espèces
A41: Santé
A42: Maxime
A43: Spy
A44: Docteur
A45: Dentiste
A46: Orthophoniste
A47: Ophtalmo
A48: Christophe
A49: Voiture
A50: Carburant clio
A51: Carburant 306
A52: Carburant
A53: Assurance clio
A54: Assurance 306
A55: Entretien clio
A56: Entretien 306
A57: Divers

Sheet Dépenses
A1: Date | B1: Libéllé | C1: Montant | D1: Commentaire | E1: Mode de paiement | F1: Montant espèces | G1: =SUMIF(E10:E78,"Espèces",C10:C78) -> 149.16 | H1: =SUM(C:C) -> 1292.54 | I1: =SUMIF(E10:E74,"Retrait",F10:F74) -> 150.00 | J1: =SUM(I1-G1) -> 0.84
G7: 1414.00
G10: 1414.00
A11: 25/02/2015 | B11: Alimentation | C11: 192.50 | D11: chèque n°0023195 | E11: Chèque
A12: 25/02/2005 | B12: Alcool | C12: 6.71 | D12: Biere | E12: Chèque
A13: 25/02/2015 | B13: Produits d'entretien | C13: 14.13 | D13: lessive chèque n°0023195 | E13: Chèque
A14: 25/02/2015 | B14: Equipement maison | C14: 6.00 | E14: Chèque
A15: 25/02/2015 | B15: Equipement maison | C15: 3.87 | D15: Tringle chambre Max chèque n° 0023195 | E15: Chèque
A16: 25/02/2015 | B16: Outillage | C16: 3.81 | D16: Equerre chèque n°0023195 | E16: Chèque
A17: 25/02/2015 | B17: Sophie | C17: 6.00 | D17: Charentaise chèque n° 0023195 | E17: Chèque
A18: 25/02/2015 | B18: Clément | C18: 18.03 | D18: Mule Basket chèque n° 0023195 | E18: Chèque
A19: 25/02/2015 | B19: Maxime | C19: 47.76 | D19: Veste Sweat Mule Basket chèque n°0023195 | E19: Chèque
A20: 25/02/2015 | B20: Christophe | C20: 7.60 | D20: Chausettes chèque n° 0023195 | E20: Chèque
A21: 24/02/2015 | B21: Téléphone | C21: 6.04 | D21: Free téléphone | E21: Prélèvement
A22: 18/02/2015 | B22: Carburant306 | C22: 53.90 | E22: CB
A23: 19/02/2015 | B23: Café/Boissons | C23: 3.00 | D23: Café Fanta Patinoire | E23: Espèces
A24: 19/02/2015 | B24: Alimentation | C24: 1.50 | D24: Bouteille d'eau patinoire | E24: Espèces
A25: 19/02/2015 | B25: Activitésportive | C25: 12.00 | D25: Patinoire Tof Max | E25: Espèces
A26: 21/02/2015 | B26: Equipementmaison | C26: 139.90 | D26: Acompte TV Sony | E26: CB
A27: 2015-02-21 | B27: Divers | C27: 60.00 | D27: Clémence | E27: Espèces
A28: 21/02/2015 | B28: Jardinage | C28: 53.90 | D28: Pots/Arrosoire/Engrais/Terreau | E28: CB
A29: 19/02/2015 | B29: Carburantclio | C29: 45.65 | E29: CB
A30: 19/02/2015 | B30: RetraitEspèces | E30: Retrait | F30: 40.00
A31: 19/02/2015 | B31: Alimentation | C31: 7.86 | D31: épicerie | E31: Espèces
A32: 19/02/2015 | B32: Activitéculturel | C32: 14.50 | D32: Cnéma Sof clem | E32: Espèces
A33: 19/02/2015 | B33: Restaurant | C33: 2.30 | D33: McDO | E33: Espèces
A34: 21/02/2015 | B34: RetraitEspèces | E34: Retrait | F34: 60.00
A35: 15/02/2015 | B35: Divers | C35: 48.00 | D35: 30 sarments | E35: Espèces
A36: 15/02/2015 | B36: RetraitEspèces | E36: Retrait | F36: 50.00
A37: 20/02/2015 | B37: Carburantclio | C37: 45.65 | E37: CB
A38: 21/02/2016 | B38: Entretien306 | C38: 50.00 | D38: Vitre arrière + Serrure | E38: CB
A39: 19/02/2015 | B39: Maxime | C39: 38.00 | D39: chèque n°0023188 SPY | E39: Chèque
A40: 19/02/2015 | B40: Sophie | C40: 7.80 | D40: chèque n°0023193 consult. main sof | E40: Chèque
A41: 19/02/2015 | B41: TAP | C41: 16.50 | D41: chèque n°0023192 JANVIER | E41: Chèque
A42: 19/02/2015 | B42: EDF | C42: 231.41 | D42: facture n° 24224177561 | E42: Prélèvement
A43: 19/02/2015 | B43: Outillage | C43: 60.10 | D43: chèque n°0023190 scie sabre agraffes | E43: Chèque
A44: 21/02/2016 | B44: Equipementmaison | C44: 25.98 | D44: chèque n°0023190 tablettes bois | E44: Chèque
A45: 15/02/2015 | B45: Clément | C45: 12.14 | D45: Arnica | E45: CB
A46: 15/02/2015 | B46: Carburant306 | C46: 50.00 | E46: CB

Sheet Revenus
A1: Date | B1: Libéllé | C1: Montant | D1: Commentaires | F1: =SUM(C:C) -> 4150.32
A2: 25/02/2015
A3: 25/02/2015 | B3: Salaire Christophe | C3: 2394.64
A5: 20/02/2015 | B5: Salaire Sophie | C5: 1755.68

Sheet Compte Crédit Agricole
A1: Compte courant | B1: =SUM(F1-Dépenses!H1+Revenus!F1-Virements!F1+Virements!G1) -> 379.81 | C1: LEP | D1: =SUM(G1-Virements!G1+Virements!F1) -> 3200 | F1: 322.03 | G1: 400

Sheet Virements
A1: Date | B1: Virement Compte Courant /LEP | C1: Virement LEP/Compte Courant | F1: =SUM(B:B) -> 3000 | G1: =SUM(C:C) -> 200
B3: 1800
A4: 2015-02-23 | C4: 200
A5: 20/02/2015 | B5: 1200

Sheet Tableau
B1: 2015-02-01 | C1: 2015-02-28 | D1: 2015-03-01 | E1: 2015-03-31 | F1: 2015-04-01 | G1: 2015-04-30 | H1: 2015-05-01 | I1: 2015-05-31 | J1: 2015-06-01 | K1: 2015-06-30 | L1: 2015-07-01 | M1: 2015-07-31
A2: DEPENSES | B2: FEVRIER | D2: MARS | F2: AVRIL | H2: MAI | J2: JUIN | L2: JUILLET
A3: Alimentation
A4: Cantine enfants | B4: =SUMIF(Dépenses!$B$10:$B$74,"Cantine enfants",Dépenses!$C$10:$C$74) -> 0 | D4: =SUMIFS(Dépenses!$C$12:$C$39,Dépenses!$B$12:$B$39, "Cantine enfants", Dépenses!$A$12:$A$39, ">=" &$D$1) -> 0 | F4: =SUMIFS(Dépenses!$C$12:$C$39,Dépenses!$B$12:$B$39, "Cantine enfants", Dépenses!$A$12:$A$39, ">=" &$F$1) -> 0
A5: Cantine tof | B5: =SUMIF(Dépenses!$B$10:$B$74,"Cantine tof",Dépenses!$C$10:$C$74) -> 0 | D5: =SUMIFS(Dépenses!$C$12:$C$39,Dépenses!$B$12:$B$39, "Cantine tof", Dépenses!$A$12:$A$39, ">=" &$D$1) -> 0 | F5: =SUMIFS(Dépenses!$C$12:$C$39,Dépenses!$B$12:$B$39, "Cantine enfants", Dépenses!$A$12:$A$39, ">=" &$F$1) -> 0
A6: Alimentation | B6: =SUMIF(Dépenses!$B$10:$B$74,"Alimentation",Dépenses!$C$10:$C$74) -> 9.36 | D6: =SUMIFS(Dépenses!$C$12:$C$39,Dépenses!$B$12:$B$39, "Alimentation", Dépenses!$A$12:$A$39, ">=" &$D$1) -> 0 | F6: =SUMIFS(Dépenses!$C$12:$C$39,Dépenses!$B$12:$B$39, "Cantine enfants", Dépenses!$A$12:$A$39, ">=" &$F$1) -> 0
A7: Restaurant | B7: =SUMIF(Dépenses!$B$10:$B$74,"Restaurant",Dépenses!$C$10:$C$74) -> 2.3 | D7: =SUMIFS(Dépenses!$C$12:$C$39,Dépenses!$B$12:$B$39, "Cantine enfants", Dépenses!$A$12:$A$39, ">=" &$D$1) -> 0 | F7: =SUMIFS(Dépenses!$C$12:$C$39,Dépenses!$B$12:$B$39, "Cantine enfants", Dépenses!$A$12:$A$39, ">=" &$F$1) -> 0
A8: Communication | D8: =SUMIFS(Dépenses!$C$12:$C$39,Dépenses!$B$12:$B$39, "Cantine enfants", Dépenses!$A$12:$A$39, ">=" &$D$1) -> 0 | F8: =SUMIFS(Dépenses!$C$12:$C$39,Dépenses!$B$12:$B$39, "Cantine enfants", Dépenses!$A$12:$A$39, ">=" &$F$1) -> 0
A9: Téléphone | B9: =SUMIF(Dépenses!$B$10:$B$74,"Téléphone",Dépenses!$C$10:$C$74) -> 6.04 | D9: =SUMIFS(Dépenses!$C$12:$C$39,Dépenses!$B$12:$B$39, "Téléphone", Dépenses!$A$12:$A$39, ">=" &$D$1) -> 0 | F9: =SUMIFS(Dépenses!$C$12:$C$39,Dépenses!$B$12:$B$39, "Cantine enfants", Dépenses!$A$12:$A$39, ">=" &$F$1) -> 0
A10: FREE | B10: =SUMIF(Dépenses!$B$10:$B$74,"FREE",Dépenses!$C$10:$C$74) -> 0 | D10: =SUMIFS(Dépenses!$C$12:$C$39,Dépenses!$B$12:$B$39, "Cantine enfants", Dépenses!$A$12:$A$39, ">=" &$D$1) -> 0 | F10: =SUMIFS(Dépenses!$C$12:$C$39,Dépenses!$B$12:$B$39, "Cantine enfants", Dépenses!$A$12:$A$39, ">=" &$F$1) -> 0
A11: Energie | D11: =SUMIFS(Dépenses!$C$12:$C$39,Dépenses!$B$12:$B$39, "Cantine enfants", Dépenses!$A$12:$A$39, ">=" &$D$1) -> 0 | F11: =SUMIFS(Dépenses!$C$12:$C$39,Dépenses!$B$12:$B$39, "Cantine enfants", Dépenses!$A$12:$A$39, ">=" &$F$1) -> 0
A12: EDF | B12: =SUMIF(Dépenses!$B$10:$B$74,"EDF",Dépenses!$C$10:$C$74) -> 231.41 | D12: =SUMIFS(Dépenses!$C$12:$C$39,Dépenses!$B$12:$B$39, "Cantine enfants", Dépenses!$A$12:$A$39, ">=" &$D$1) -> 0 | F12: =SUMIFS(Dépenses!$C$12:$C$39,Dépenses!$B$12:$B$39, "Cantine enfants", Dépenses!$A$12:$A$39, ">=" &$F$1) -> 0
A13: SAUR | B13: =SUMIF(Dépenses!$B$10:$B$74,"SAUR",Dépenses!$C$10:$C$74) -> 0 | D13: =SUMIFS(Dépenses!$C$12:$C$39,Dépenses!$B$12:$B$39, "Cantine enfants", Dépenses!$A$12:$A$39, ">=" &$D$1) -> 0 | F13: =SUMIFS(Dépenses!$C$12:$C$39,Dépenses!$B$12:$B$39, "Cantine enfants", Dépenses!$A$12:$A$39, ">=" &$F$1) -> 0
A14: Gaz | B14: =SUMIF(Dépenses!$B$10:$B$74,"Gaz",Dépenses!$C$10:$C$74) -> 0 | D14: =SUMIFS(Dépenses!$C$12:$C$39,Dépenses!$B$12:$B$39, "Cantine enfants", Dépenses!$A$12:$A$39, ">=" &$D$1) -> 0 | F14: =SUMIFS(Dépenses!$C$12:$C$39,Dépenses!$B$12:$B$39, "Cantine enfants", Dépenses!$A$12:$A$39, ">=" &$F$1) -> 0
A15: Enfants | D15: =SUMIFS(Dépenses!$C$12:$C$39,Dépenses!$B$12:$B$39, "Cantine enfants", Dépenses!$A$12:$A$39, ">=" &$D$1) -> 0 | F15: =SUMIFS(Dépenses!$C$12:$C$39,Dépenses!$B$12:$B$39, "Cantine enfants", Dépenses!$A$12:$A$39, ">=" &$F$1) -> 0
A16: Argent de poche Max | B16: =SUMIF(Dépenses!$B$10:$B$74,"Argent de poche Max",Dépenses!$C$10:$C$74) -> 0 | D16: =SUMIFS(Dépenses!$C$12:$C$39,Dépenses!$B$12:$B$39, "Cantine enfants", Dépenses!$A$12:$A$39, ">=" &$D$1) -> 0 | F16: =SUMIFS(Dépenses!$C$12:$C$39,Dépenses!$B$12:$B$39, "Cantine enfants", Dépenses!$A$12:$A$39, ">=" &$F$1) -> 0
A17: Argent de poche Clem | B17: =SUMIF(Dépenses!$B$10:$B$74,"Argent de poche Clem",Dépenses!$C$10:$C$74) -> 0 | D17: =SUMIFS(Dépenses!$C$12:$C$39,Dépenses!$B$12:$B$39, "Cantine enfants", Dépenses!$A$12:$A$39, ">=" &$D$1) -> 0 | F17: =SUMIFS(Dépenses!$C$12:$C$39,Dépenses!$B$12:$B$39, "Cantine enfants", Dépenses!$A$12:$A$39, ">=" &$F$1) -> 0
A18: Garderie | B18: =SUMIF(Dépenses!$B$10:$B$74,"Garderie",Dépenses!$C$10:$C$74) -> 0 | D18: =SUMIFS(Dépenses!$C$12:$C$39,Dépenses!$B$12:$B$39, "Cantine enfants", Dépenses!$A$12:$A$39, ">=" &$D$1) -> 0 | F18: =SUMIFS(Dépenses!$C$12:$C$39,Dépenses!$B$12:$B$39, "Cantine enfants", Dépenses!$A$12:$A$39, ">=" &$F$1) -> 0
A19: TAP | B19: =SUMIF(Dépenses!$B$10:$B$74,"TAP",Dépenses!$C$10:$C$74) -> 16.5 | D19: =SUMIFS(Dépenses!$C$12:$C$39,Dépenses!$B$12:$B$39, "Cantine enfants", Dépenses!$A$12:$A$39, ">=" &$D$1) -> 0 | F19: =SUMIFS(Dépenses!$C$12:$C$39,Dépenses!$B$12:$B$39, "Cantine enfants", Dépenses!$A$12:$A$39, ">=" &$F$1) -> 0
A20: Activité sportive | B20: =SUMIF(Dépenses!$B$10:$B$74,"Activitésportive",Dépenses!$C$10:$C$74) -> 12 | D20: =SUMIFS(Dépenses!$C$12:$C$39,Dépenses!$B$12:$B$39, "Cantine enfants", Dépenses!$A$12:$A$39, ">=" &$D$1) -> 0 | F20: =SUMIFS(Dépenses!$C$12:$C$39,Dépenses!$B$12:$B$39, "Cantine enfants", Dépenses!$A$12:$A$39, ">=" &$F$1) -> 0
A21: Activité culturel | B21: =SUMIF(Dépenses!$B$10:$B$74,"Activitéculturel",Dépenses!$C$10:$C$74) -> 14.5 | D21: =SUMIFS(Dépenses!$C$12:$C$39,Dépenses!$B$12:$B$39, "Cantine enfants", Dépenses!$A$12:$A$39, ">=" &$D$1) -> 0 | F21: =SUMIFS(Dépenses!$C$12:$C$39,Dépenses!$B$12:$B$39, "Cantine enfants", Dépenses!$A$12:$A$39, ">=" &$F$1) -> 0
A22: Famille | D22: =SUMIFS(Dépenses!$C$12:$C$39,Dépenses!$B$12:$B$39, "Cantine enfants", Dépenses!$A$12:$A$39, ">=" &$D$1) -> 0 | F22: =SUMIFS(Dépenses!$C$12:$C$39,Dépenses!$B$12:$B$39, "Cantine enfants", Dépenses!$A$12:$A$39, ">=" &$F$1) -> 0
A23: Produits hygiène | B23: =SUMIF(Dépenses!$B$10:$B$74,"Produithygiène",Dépenses!$C$10:$C$74) -> 0 | D23: =SUMIFS(Dépenses!$C$12:$C$39,Dépenses!$B$12:$B$39, "Cantine enfants", Dépenses!$A$12:$A$39, ">=" &$D$1) -> 0 | F23: =SUMIFS(Dépenses!$C$12:$C$39,Dépenses!$B$12:$B$39, "Cantine enfants", Dépenses!$A$12:$A$39, ">=" &$F$1) -> 0
A24: Produits d'entretien | B24: =SUMIF(Dépenses!$B$10:$B$74,"Produits d'entretien",Dépenses!$C$10:$C$74) -> 14.13 | D24: =SUMIFS(Dépenses!$C$12:$C$39,Dépenses!$B$12:$B$39, "Cantine enfants", Dépenses!$A$12:$A$39, ">=" &$D$1) -> 0 | F24: =SUMIFS(Dépenses!$C$12:$C$39,Dépenses!$B$12:$B$39, "Cantine enfants", Dépenses!$A$12:$A$39, ">=" &$F$1) -> 0
A25: Tabac | B25: =SUMIF(Dépenses!$B$10:$B$74,"Tabac",Dépenses!$C$10:$C$74) -> 0 | D25: =SUMIFS(Dépenses!$C$12:$C$39,Dépenses!$B$12:$B$39, "Cantine enfants", Dépenses!$A$12:$A$39, ">=" &$D$1) -> 0 | F25: =SUMIFS(Dépenses!$C$12:$C$39,Dépenses!$B$12:$B$39, "Cantine enfants", Dépenses!$A$12:$A$39, ">=" &$F$1) -> 0
A26: Alcool | B26: =SUMIF(Dépenses!$B$10:$B$74,"Alcool",Dépenses!$C$10:$C$74) -> 6.71 | D26: =SUMIFS(Dépenses!$C$12:$C$39,Dépenses!$B$12:$B$39, "Cantine enfants", Dépenses!$A$12:$A$39, ">=" &$D$1) -> 0 | F26: =SUMIFS(Dépenses!$C$12:$C$39,Dépenses!$B$12:$B$39, "Cantine enfants", Dépenses!$A$12:$A$39, ">=" &$F$1) -> 0
A27: Café/Boissons | B27: =SUMIF(Dépenses!$B$10:$B$74,"Café/Boissons",Dépenses!$C$10:$C$74) -> 3 | D27: =SUMIFS(Dépenses!$C$12:$C$39,Dépenses!$B$12:$B$39, "Cantine enfants", Dépenses!$A$12:$A$39, ">=" &$D$1) -> 0 | F27: =SUMIFS(Dépenses!$C$12:$C$39,Dépenses!$B$12:$B$39, "Cantine enfants", Dépenses!$A$12:$A$39, ">=" &$F$1) -> 0
A28: Habillement | D28: =SUMIFS(Dépenses!$C$12:$C$39,Dépenses!$B$12:$B$39, "Cantine enfants", Dépenses!$A$12:$A$39, ">=" &$D$1) -> 0 | F28: =SUMIFS(Dépenses!$C$12:$C$39,Dépenses!$B$12:$B$39, "Cantine enfants", Dépenses!$A$12:$A$39, ">=" &$F$1) -> 0
A29: Maxime | B29: =SUMIF(Dépenses!$B$10:$B$74,"Maxime",Dépenses!$C$10:$C$74) -> 85.76 | D29: =SUMIFS(Dépenses!$C$12:$C$39,Dépenses!$B$12:$B$39, "Cantine enfants", Dépenses!$A$12:$A$39, ">=" &$D$1) -> 0 | F29: =SUMIFS(Dépenses!$C$12:$C$39,Dépenses!$B$12:$B$39, "Cantine enfants", Dépenses!$A$12:$A$39, ">=" &$F$1) -> 0
A30: Clément | B30: =SUMIF(Dépenses!$B$10:$B$74,"Clément",Dépenses!$C$10:$C$74) -> 30.17 | D30: =SUMIFS(Dépenses!$C$12:$C$39,Dépenses!$B$12:$B$39, "Cantine enfants", Dépenses!$A$12:$A$39, ">=" &$D$1) -> 0 | F30: =SUMIFS(Dépenses!$C$12:$C$39,Dépenses!$B$12:$B$39, "Cantine enfants", Dépenses!$A$12:$A$39, ">=" &$F$1) -> 0
A31: Sophie | B31: =SUMIF(Dépenses!$B$10:$B$74,"Sophie",Dépenses!$C$10:$C$74) -> 13.8 | D31: =SUMIFS(Dépenses!$C$12:$C$39,Dépenses!$B$12:$B$39, "Cantine enfants", Dépenses!$A$12:$A$39, ">=" &$D$1) -> 0 | F31: =SUMIFS(Dépenses!$C$12:$C$39,Dépenses!$B$12:$B$39, "Cantine enfants", Dépenses!$A$12:$A$39, ">=" &$F$1) -> 0
A32: Christophe | B32: =SUMIF(Dépenses!$B$10:$B$74,"Christophe",Dépenses!$C$10:$C$74) -> 7.6 | D32: =SUMIFS(Dépenses!$C$12:$C$39,Dépenses!$B$12:$B$39, "Cantine enfants", Dépenses!$A$12:$A$39, ">=" &$D$1) -> 0 | F32: =SUMIFS(Dépenses!$C$12:$C$39,Dépenses!$B$12:$B$39, "Cantine enfants", Dépenses!$A$12:$A$39, ">=" &$F$1) -> 0
A33: Maison | D33: =SUMIFS(Dépenses!$C$12:$C$39,Dépenses!$B$12:$B$39, "Cantine enfants", Dépenses!$A$12:$A$39, ">=" &$D$1) -> 0 | F33: =SUMIFS(Dépenses!$C$12:$C$39,Dépenses!$B$12:$B$39, "Cantine enfants", Dépenses!$A$12:$A$39, ">=" &$F$1) -> 0
A34: Taxe foncière | B34: =SUMIF(Dépenses!$B$10:$B$74,"Taxefoncière",Dépenses!$C$10:$C$74) -> 0 | D34: =SUMIFS(Dépenses!$C$12:$C$39,Dépenses!$B$12:$B$39, "Cantine enfants", Dépenses!$A$12:$A$39, ">=" &$D$1) -> 0 | F34: =SUMIFS(Dépenses!$C$12:$C$39,Dépenses!$B$12:$B$39, "Cantine enfants", Dépenses!$A$12:$A$39, ">=" &$F$1) -> 0
A35: Impôt locaux | B35: =SUMIF(Dépenses!$B$10:$B$74,"Impôtlocaux",Dépenses!$C$10:$C$74) -> 0 | D35: =SUMIFS(Dépenses!$C$12:$C$39,Dépenses!$B$12:$B$39, "Cantine enfants", Dépenses!$A$12:$A$39, ">=" &$D$1) -> 0 | F35: =SUMIFS(Dépenses!$C$12:$C$39,Dépenses!$B$12:$B$39, "Cantine enfants", Dépenses!$A$12:$A$39, ">=" &$F$1) -> 0
A36: Travaux | B36: =SUMIF(Dépenses!$B$10:$B$74,"Travaux",Dépenses!$C$10:$C$74) -> 0 | D36: =SUMIFS(Dépenses!$C$12:$C$39,Dépenses!$B$12:$B$39, "Cantine enfants", Dépenses!$A$12:$A$39, ">=" &$D$1) -> 0 | F36: =SUMIFS(Dépenses!$C$12:$C$39,Dépenses!$B$12:$B$39, "Cantine enfants", Dépenses!$A$12:$A$39, ">=" &$F$1) -> 0
A37: Equipement maison | B37: =SUMIF(Dépenses!$B$10:$B$74,"Equipementmaison",Dépenses!$C$10:$C$74) -> 165.88 | D37: =SUMIFS(Dépenses!$C$12:$C$39,Dépenses!$B$12:$B$39, "Cantine enfants", Dépenses!$A$12:$A$39, ">=" &$D$1) -> 0 | F37: =SUMIFS(Dépenses!$C$12:$C$39,Dépenses!$B$12:$B$39, "Cantine enfants", Dépenses!$A$12:$A$39, ">=" &$F$1) -> 0
A38: Outillage | B38: =SUMIF(Dépenses!$B$10:$B$74,"Outillage",Dépenses!$C$10:$C$74) -> 63.91 | D38: =SUMIFS(Dépenses!$C$12:$C$39,Dépenses!$B$12:$B$39, "Cantine enfants", Dépenses!$A$12:$A$39, ">=" &$D$1) -> 0 | F38: =SUMIFS(Dépenses!$C$12:$C$39,Dépenses!$B$12:$B$39, "Cantine enfants", Dépenses!$A$12:$A$39, ">=" &$F$1) -> 0
A39: Jardinage | B39: =SUMIF(Dépenses!$B$10:$B$74,"Jardinage",Dépenses!$C$10:$C$74) -> 53.9 | D39: =SUMIFS(Dépenses!$C$12:$C$39,Dépenses!$B$12:$B$39, "Cantine enfants", Dépenses!$A$12:$A$39, ">=" &$D$1) -> 0 | F39: =SUMIFS(Dépenses!$C$12:$C$39,Dépenses!$B$12:$B$39, "Cantine enfants", Dépenses!$A$12:$A$39, ">=" &$F$1) -> 0
A40: Assurance | B40: =SUMIF(Dépenses!$B$10:$B$74,"Assurance",Dépenses!$C$10:$C$74) -> 0 | D40: =SUMIFS(Dépenses!$C$12:$C$39,Dépenses!$B$12:$B$39, "Cantine enfants", Dépenses!$A$12:$A$39, ">=" &$D$1) -> 0 | F40: =SUMIFS(Dépenses!$C$12:$C$39,Dépenses!$B$12:$B$39, "Cantine enfants", Dépenses!$A$12:$A$39, ">=" &$F$1) -> 0
A41: Droguerie | B41: =SUMIF(Dépenses!$B$10:$B$74,"Droguerie",Dépenses!$C$10:$C$74) -> 0 | D41: =SUMIFS(Dépenses!$C$12:$C$39,Dépenses!$B$12:$B$39, "Cantine enfants", Dépenses!$A$12:$A$39, ">=" &$D$1) -> 0 | F41: =SUMIFS(Dépenses!$C$12:$C$39,Dépenses!$B$12:$B$39, "Cantine enfants", Dépenses!$A$12:$A$39, ">=" &$F$1) -> 0
A42: Retrait Espèces | D42: =SUMIFS(Dépenses!$C$12:$C$39,Dépenses!$B$12:$B$39, "Cantine enfants", Dépenses!$A$12:$A$39, ">=" &$D$1) -> 0 | F42: =SUMIFS(Dépenses!$C$12:$C$39,Dépenses!$B$12:$B$39, "Cantine enfants", Dépenses!$A$12:$A$39, ">=" &$F$1) -> 0
A43: Santé | D43: =SUMIFS(Dépenses!$C$12:$C$39,Dépenses!$B$12:$B$39, "Cantine enfants", Dépenses!$A$12:$A$39, ">=" &$D$1) -> 0 | F43: =SUMIFS(Dépenses!$C$12:$C$39,Dépenses!$B$12:$B$39, "Cantine enfants", Dépenses!$A$12:$A$39, ">=" &$F$1) -> 0
A44: Maxime | B44: =SUMIF(Dépenses!$B$10:$B$74,"Maxime",Dépenses!$C$10:$C$74) -> 85.76 | D44: =SUMIFS(Dépenses!$C$12:$C$39,Dépenses!$B$12:$B$39, "Cantine enfants", Dépenses!$A$12:$A$39, ">=" &$D$1) -> 0 | F44: =SUMIFS(Dépenses!$C$12:$C$39,Dépenses!$B$12:$B$39, "Cantine enfants", Dépenses!$A$12:$A$39, ">=" &$F$1) -> 0
A45: Spy | B45: =SUMIF(Dépenses!$B$10:$B$74,"Spy",Dépenses!$C$10:$C$74) -> 0 | D45: =SUMIFS(Dépenses!$C$12:$C$39,Dépenses!$B$12:$B$39, "Cantine enfants", Dépenses!$A$12:$A$39, ">=" &$D$1) -> 0 | F45: =SUMIFS(Dépenses!$C$12:$C$39,Dépenses!$B$12:$B$39, "Cantine enfants", Dépenses!$A$12:$A$39, ">=" &$F$1) -> 0
A46: Docteur | B46: =SUMIF(Dépenses!$B$10:$B$74,"Docteur",Dépenses!$C$10:$C$74) -> 0 | D46: =SUMIFS(Dépenses!$C$12:$C$39,Dépenses!$B$12:$B$39, "Cantine enfants", Dépenses!$A$12:$A$39, ">=" &$D$1) -> 0 | F46: =SUMIFS(Dépenses!$C$12:$C$39,Dépenses!$B$12:$B$39, "Cantine enfants", Dépenses!$A$12:$A$39, ">=" &$F$1) -> 0
A47: Dentiste | B47: =SUMIF(Dépenses!$B$10:$B$74,"Dentiste",Dépenses!$C$10:$C$74) -> 0 | D47: =SUMIFS(Dépenses!$C$12:$C$39,Dépenses!$B$12:$B$39, "Cantine enfants", Dépenses!$A$12:$A$39, ">=" &$D$1) -> 0 | F47: =SUMIFS(Dépenses!$C$12:$C$39,Dépenses!$B$12:$B$39, "Cantine enfants", Dépenses!$A$12:$A$39, ">=" &$F$1) -> 0
A48: Orthophoniste | B48: =SUMIF(Dépenses!$B$10:$B$74,"Orthophoniste",Dépenses!$C$10:$C$74) -> 0 | D48: =SUMIFS(Dépenses!$C$12:$C$39,Dépenses!$B$12:$B$39, "Cantine enfants", Dépenses!$A$12:$A$39, ">=" &$D$1) -> 0 | F48: =SUMIFS(Dépenses!$C$12:$C$39,Dépenses!$B$12:$B$39, "Cantine enfants", Dépenses!$A$12:$A$39, ">=" &$F$1) -> 0
A49: Ophtalmo | B49: =SUMIF(Dépenses!$B$10:$B$74,"Ophtalmo",Dépenses!$C$10:$C$74) -> 0 | D49: =SUMIFS(Dépenses!$C$12:$C$39,Dépenses!$B$12:$B$39, "Cantine enfants", Dépenses!$A$12:$A$39, ">=" &$D$1) -> 0 | F49: =SUMIFS(Dépenses!$C$12:$C$39,Dépenses!$B$12:$B$39, "Cantine enfants", Dépenses!$A$12:$A$39, ">=" &$F$1) -> 0
A50: Christophe | B50: =SUMIF(Dépenses!$B$10:$B$74,"Christophe",Dépenses!$C$10:$C$74) -> 7.6 | D50: =SUMIFS(Dépenses!$C$12:$C$39,Dépenses!$B$12:$B$39, "Cantine enfants", Dépenses!$A$12:$A$39, ">=" &$D$1) -> 0 | F50: =SUMIFS(Dépenses!$C$12:$C$39,Dépenses!$B$12:$B$39, "Cantine enfants", Dépenses!$A$12:$A$39, ">=" &$F$1) -> 0
A51: Voiture | D51: =SUMIFS(Dépenses!$C$12:$C$39,Dépenses!$B$12:$B$39, "Cantine enfants", Dépenses!$A$12:$A$39, ">=" &$D$1) -> 0 | F51: =SUMIFS(Dépenses!$C$12:$C$39,Dépenses!$B$12:$B$39, "Cantine enfants", Dépenses!$A$12:$A$39, ">=" &$F$1) -> 0
A52: Carburant clio | B52: =SUMIF(Dépenses!$B$10:$B$74,"Carburantclio",Dépenses!$C$10:$C$74) -> 91.3 | D52: =SUMIFS(Dépenses!$C$12:$C$39,Dépenses!$B$12:$B$39, "Cantine enfants", Dépenses!$A$12:$A$39, ">=" &$D$1) -> 0 | F52: =SUMIFS(Dépenses!$C$12:$C$39,Dépenses!$B$12:$B$39, "Cantine enfants", Dépenses!$A$12:$A$39, ">=" &$F$1) -> 0
A53: Carburant 306 | B53: =SUMIF(Dépenses!$B$10:$B$74,"Carburant306",Dépenses!$C$10:$C$74) -> 103.9 | D53: =SUMIFS(Dépenses!$C$12:$C$39,Dépenses!$B$12:$B$39, "Cantine enfants", Dépenses!$A$12:$A$39, ">=" &$D$1) -> 0 | F53: =SUMIFS(Dépenses!$C$12:$C$39,Dépenses!$B$12:$B$39, "Cantine enfants", Dépenses!$A$12:$A$39, ">=" &$F$1) -> 0
A54: Carburant | B54: =SUMIF(Dépenses!$B$10:$B$74,"Carburant",Dépenses!$C$10:$C$74) -> 0 | D54: =SUMIFS(Dépenses!$C$12:$C$39,Dépenses!$B$12:$B$39, "Cantine enfants", Dépenses!$A$12:$A$39, ">=" &$D$1) -> 0 | F54: =SUMIFS(Dépenses!$C$12:$C$39,Dépenses!$B$12:$B$39, "Cantine enfants", Dépenses!$A$12:$A$39, ">=" &$F$1) -> 0
A55: Assurance clio | B55: =SUMIF(Dépenses!$B$10:$B$74,"Assuranceclio",Dépenses!$C$10:$C$74) -> 0 | D55: =SUMIFS(Dépenses!$C$12:$C$39,Dépenses!$B$12:$B$39, "Cantine enfants", Dépenses!$A$12:$A$39, ">=" &$D$1) -> 0 | F55: =SUMIFS(Dépenses!$C$12:$C$39,Dépenses!$B$12:$B$39, "Cantine enfants", Dépenses!$A$12:$A$39, ">=" &$F$1) -> 0
A56: Assurance 306 | B56: =SUMIF(Dépenses!$B$10:$B$74,"Assurance306",Dépenses!$C$10:$C$74) -> 0 | D56: =SUMIFS(Dépenses!$C$12:$C$39,Dépenses!$B$12:$B$39, "Cantine enfants", Dépenses!$A$12:$A$39, ">=" &$D$1) -> 0 | F56: =SUMIFS(Dépenses!$C$12:$C$39,Dépenses!$B$12:$B$39, "Cantine enfants", Dépenses!$A$12:$A$39, ">=" &$F$1) -> 0
A57: Entretien clio | B57: =SUMIF(Dépenses!$B$10:$B$74,"Entretienclio",Dépenses!$C$10:$C$74) -> 0 | D57: =SUMIFS(Dépenses!$C$12:$C$39,Dépenses!$B$12:$B$39, "Cantine enfants", Dépenses!$A$12:$A$39, ">=" &$D$1) -> 0 | F57: =SUMIFS(Dépenses!$C$12:$C$39,Dépenses!$B$12:$B$39, "Cantine enfants", Dépenses!$A$12:$A$39, ">=" &$F$1) -> 0
A58: Entretien 306 | B58: =SUMIF(Dépenses!$B$10:$B$74,"Entretien306",Dépenses!$C$10:$C$74) -> 50 | D58: =SUMIFS(Dépenses!$C$12:$C$39,Dépenses!$B$12:$B$39, "Cantine enfants", Dépenses!$A$12:$A$39, ">=" &$D$1) -> 0 | F58: =SUMIFS(Dépenses!$C$12:$C$39,Dépenses!$B$12:$B$39, "Cantine enfants", Dépenses!$A$12:$A$39, ">=" &$F$1) -> 0
A59: Divers | B59: =SUMIF(Dépenses!$B$10:$B$74,"Divers",Dépenses!$C$10:$C$74) -> 108 | D59: =SUMIFS(Dépenses!$C$12:$C$39,Dépenses!$B$12:$B$39, "Cantine enfants", Dépenses!$A$12:$A$39, ">=" &$D$1) -> 0 | F59: =SUMIFS(Dépenses!$C$12:$C$39,Dépenses!$B$12:$B$39, "Cantine enfants", Dépenses!$A$12:$A$39, ">=" &$F$1) -> 0
